fUSD/lending_fUSD_20260601
["ID","MTS","AMOUNT","RATE_DAILY","PERIOD"]
[423705768,1780319442000,-150.74,0.00016767,2]
[423705769,1780319442000,-1671.34147859,0.0001677,2]
[423705771,1780319442000,-1671.34147859,0.00016795,2]
[423705772,1780319442000,-500.0,0.00016816,2]
[423705775,1780319442000,-1671.34147859,0.00016853,2]
[423705802,1780319442000,-1671.34147859,0.0001748,2]
[423705819,1780319442000,-1121.9,0.0001841,2]
[423705808,1780319442000,-1671.34147859,0.00017606,2]
[423705847,1780319442000,-298.98,0.00018447,2]
[423705848,1780319442000,-500.0,0.00018447,2]
[423705849,1780319442000,-500.0,0.00018447,2]
[423705853,1780319442000,-500.0,0.00018447,2]
[423705854,1780319442000,-500.0,0.00018447,2]
[423705857,1780319442000,-500.0,0.00018447,2]
[423705858,1780319442000,-250.0,0.00018447,2]
[423705860,1780319442000,-770.02,0.000185,2]
[423705856,1780319442000,-500.0,0.00018447,2]
[423705859,1780319442000,-1820705.5578,0.00018448,2]
[423705855,1780319442000,-500.0,0.00018447,2]
[423705861,1780319442000,-2226.90229636,0.00019,2]
[423705863,1780319442000,-151.0,0.00019791,2]
[423705850,1780319442000,-500.0,0.00018447,2]
[423705864,1780319442000,-278.71837376,0.00019791,2]
[423705865,1780319442000,-2080.17592889,0.00019791,2]
[423705866,1780319442000,-1280.0,0.0002,2]
[423705867,1780319442000,-270.13475721,0.0002,2]
[423705869,1780319442000,-898.798587,0.0002,2]
[423705868,1780319442000,-1404.0,0.0002,2]
[423705870,1780319442000,-337.0,0.0002,2]
[423705873,1780319442000,-427.0,0.0002,2]
[423705874,1780319442000,-321.0,0.0002,2]
[423705877,1780319442000,-1197.0,0.0002,2]
[423705876,1780319442000,-656.0,0.0002,2]
[423705875,1780319442000,-1622.0,0.0002,2]
[423705872,1780319442000,-1792.0,0.0002,2]
[423705806,1780319442000,-1671.34147859,0.00017577,2]
[423705862,1780319442000,-157.09,0.00019687,2]
[423705851,1780319442000,-500.0,0.00018447,2]
[423705871,1780319442000,-253.0,0.0002,2]
[423705845,1780319442000,-500.0,0.00018447,2]
[423705852,1780319442000,-500.0,0.00018447,2]
[423705814,1780319442000,-1984.22864002,0.0001809,2]
[423705813,1780319442000,-350.0,0.00018,2]
[423705816,1780319442000,-331.75692434,0.000184,2]
[423705809,1780319442000,-1671.34147859,0.00017633,2]
[423705815,1780319442000,-5432.31669404,0.000184,2]
[423705812,1780319442000,-1671.34147859,0.00017736,2]
[423705811,1780319442000,-1671.34147859,0.00017724,2]
[423705810,1780319442000,-1671.34147859,0.00017671,2]
[423705822,1780319442000,-378.37381635,0.00018438,2]
[423705823,1780319442000,-473.48,0.00018447,2]
[423705838,1780319442000,-698.26,0.00018447,2]
[423705837,1780319442000,-500.0,0.00018447,2]
[423705839,1780319442000,-500.0,0.00018447,2]
[423705807,1780319442000,-861.92,0.000176,7]
[423705835,1780319442000,-500.0,0.00018447,2]
[423705846,1780319442000,-500.0,0.00018447,2]
[423705844,1780319442000,-500.0,0.00018447,3]
[423705843,1780319442000,-500.0,0.00018447,2]
[423705842,1780319442000,-500.0,0.00018447,2]
[423705836,1780319442000,-698.26,0.00018447,2]
[423705840,1780319442000,-500.0,0.00018447,2]
[423705841,1780319442000,-500.0,0.00018447,2]
[423705828,1780319442000,-698.26,0.00018447,2]
[423705831,1780319442000,-698.26,0.00018447,2]
[423705830,1780319442000,-698.26,0.00018447,2]
[423705832,1780319442000,-500.0,0.00018447,2]
[423705834,1780319442000,-698.26,0.00018447,2]
[423705826,1780319442000,-698.26,0.00018447,2]
[423705833,1780319442000,-698.26,0.00018447,2]
[423705927,1780319443000,-741.83,0.00021273,2]
[423705928,1780319443000,-451.0,0.00021388,2]
[423705919,1780319443000,-656.0,0.00021,2]
[423705926,1780319443000,-2175.25,0.00021273,2]
[423705918,1780319443000,-1622.0,0.00021,2]
[423705915,1780319443000,-6111.0,0.00021,2]
[423705910,1780319443000,-253.0,0.00021,2]
[423705911,1780319443000,-1792.0,0.00021,2]
[423705913,1780319443000,-6111.0,0.00021,2]
[423705909,1780319443000,-337.0,0.00021,2]
[423705912,1780319443000,-15000.0,0.00021,2]
[423705917,1780319443000,-321.0,0.00021,2]
[423705921,1780319443000,-706.0,0.00021,2]
[423705930,1780319443000,-2319.72410669,0.00021435,2]
[423705922,1780319443000,-515.0,0.00021,2]
[423705923,1780319443000,-719.0,0.00021,2]
[423705925,1780319443000,-395.0,0.00021273,2]
[423705924,1780319443000,-150.74,0.00021205,2]
[423705929,1780319443000,-770.02,0.000214,2]
[423705941,1780319443000,-451.01823754,0.0002191,2]
[423705931,1780319443000,-456.6233747,0.000215,15]
[423705932,1780319443000,-456.6233747,0.000215,15]
[423705942,1780319443000,-451.0,0.0002191,2]
[423705933,1780319443000,-497.99422448,0.000215,15]
[423705934,1780319443000,-497.99422448,0.000215,15]
[423705936,1780319443000,-529.26383545,0.000215,15]
[423705916,1780319443000,-427.0,0.00021,2]
[423705920,1780319443000,-1197.0,0.00021,2]
[423705908,1780319443000,-1404.0,0.00021,2]
[423705893,1780319443000,-1984.22864002,0.00020553,2]
[423705905,1780319443000,-451.0,0.00020867,2]
[423705939,1780319443000,-4001.64,0.00021759,2]
[423705879,1780319443000,-399.43,0.0002,7]
[423705878,1780319443000,-706.0,0.0002,2]
[423705880,1780319443000,-200.0,0.0002,10]
[423705882,1780319443000,-831.0,0.0002,2]
[423705881,1780319443000,-400.0,0.0002,2]
[423705887,1780319443000,-270.13475721,0.000202,2]
[423705890,1780319443000,-186.86702393,0.00020368,2]
[423705885,1780319443000,-719.0,0.0002,2]
[423705886,1780319443000,-300.0,0.000201,10]
[423705888,1780319443000,-30000.0,0.00020261,2]
[423705883,1780319443000,-4001.64,0.0002,2]
[423705889,1780319443000,-2157.14243826,0.00020339,2]
[423705907,1780319443000,-1280.0,0.00021,2]
[423705884,1780319443000,-515.0,0.0002,2]
[423705894,1780319443000,-1050.0,0.00020583,2]
[423705900,1780319443000,-929.0,0.00020846,2]
[423705899,1780319443000,-1357.0,0.00020846,2]
[423705903,1780319443000,-1227.873,0.00020846,2]
[423705892,1780319443000,-270.13475721,0.000204,2]
[423705896,1780319443000,-270.13475721,0.000206,2]
[423705901,1780319443000,-525.0,0.00020846,2]
[423705895,1780319443000,-450.0,0.00020583,7]
[423705902,1780319443000,-1273.0,0.00020846,2]
[423705897,1780319443000,-270.13475721,0.000208,2]
[423705898,1780319443000,-3551.0,0.00020846,2]
[423705904,1780319443000,-451.0,0.00020867,2]
[423705914,1780319443000,-15000.0,0.00021,2]
[423705891,1780319443000,-1121.9,0.00020381,2]
[423705937,1780319443000,-539.68328701,0.000215,15]
[423705906,1780319443000,-2236.95670847,0.00020887,2]
[423705935,1780319443000,-529.26383545,0.000215,15]
[423705998,1780319443000,-929.0,0.00023846,2]
[423705973,1780319443000,-2494.55939288,0.00022531,2]
[423705977,1780319443000,-1404.0,0.00023,2]
[423705974,1780319443000,-1606.93,0.00022691,2]
[423705975,1780319443000,-1280.0,0.00023,2]
[423705978,1780319443000,-337.0,0.00023,2]
[423705980,1780319443000,-1792.0,0.00023,2]
[423705979,1780319443000,-253.0,0.00023,2]
[423705982,1780319443000,-321.0,0.00023,2]
[423705983,1780319443000,-1622.0,0.00023,2]
[423705990,1780319443000,-1984.22864002,0.00023016,2]
[423705981,1780319443000,-427.0,0.00023,2]
[423705984,1780319443000,-3439.0,0.00023,2]
[423705976,1780319443000,-2500.0,0.00023,20]
[423705988,1780319443000,-515.0,0.00023,2]
[423705989,1780319443000,-719.0,0.00023,2]
[423705987,1780319443000,-706.0,0.00023,2]
[423705991,1780319443000,-500.0,0.00023068,2]
[423705992,1780319443000,-2586.85809042,0.00023079,2]
[423705995,1780319443000,-2682.57183977,0.00023627,2]
[423705994,1780319443000,-4001.64,0.00023517,2]
[423705993,1780319443000,-1428.38747117,0.00023417,2]
[423705996,1780319443000,-3551.0,0.00023846,2]
[423705997,1780319443000,-1357.0,0.00023846,2]
[423706001,1780319443000,-1481.2378076,0.00023965,2]
[423705999,1780319443000,-525.0,0.00023846,2]
[423706000,1780319443000,-1273.0,0.00023846,2]
[423705938,1780319443000,-539.68328701,0.000215,15]
[423705985,1780319443000,-656.0,0.00023,2]
[423705971,1780319443000,-500.0,0.00022531,2]
[423705986,1780319443000,-1197.0,0.00023,2]
[423705969,1780319443000,-1814.02,0.00022466,2]
[423705972,1780319443000,-500.0,0.00022531,2]
[423705940,1780319443000,-507.40807909,0.00021774,7]
[423705944,1780319443000,-5000.0,0.00021918,2]
[423705948,1780319443000,-1404.0,0.00022,2]
[423705954,1780319443000,-1622.0,0.00022,2]
[423705947,1780319443000,-1280.0,0.00022,2]
[423705943,1780319443000,-1006.96,0.00021918,2]
[423705945,1780319443000,-2405.55389863,0.00021983,2]
[423705950,1780319443000,-253.0,0.00022,2]
[423705949,1780319443000,-337.0,0.00022,2]
[423705953,1780319443000,-321.0,0.00022,2]
[423705952,1780319443000,-427.0,0.00022,2]
[423705946,1780319443000,-698.26,0.00021999,2]
[423705951,1780319443000,-1792.0,0.00022,2]
[423705955,1780319443000,-656.0,0.00022,2]
[423705968,1780319443000,-718.26,0.000224,14]
[423705970,1780319443000,-345.24,0.00022466,2]
[423705957,1780319443000,-706.0,0.00022,2]
[423705964,1780319443000,-500.0,0.00022296,7]
[423705962,1780319443000,-719.0,0.00022,2]
[423705966,1780319443000,-834.0,0.00022296,7]
[423705963,1780319443000,-500.0,0.00022296,7]
[423705959,1780319443000,-600.0,0.00022,5]
[423705961,1780319443000,-515.0,0.00022,2]
[423705956,1780319443000,-1197.0,0.00022,2]
[423705960,1780319443000,-450.0,0.00022,2]
[423705967,1780319443000,-1121.9,0.00022353,2]
[423705958,1780319443000,-977.20489873,0.00022,2]
[423705965,1780319443000,-500.0,0.00022296,7]
[423706038,1780319444000,-429.08824232,0.00025,2]
[423706045,1780319444000,-735.8330122,0.00025,2]
[423706057,1780319444000,-741.83,0.00025786,2]
[423706046,1780319444000,-1592.87721992,0.00025061,2]
[423706037,1780319444000,-1807.93836112,0.00025,2]
[423706041,1780319444000,-663.72412372,0.00025,2]
[423706044,1780319444000,-519.0,0.00025,2]
[423706040,1780319444000,-1630.30352785,0.00025,2]
[423706039,1780319444000,-337.45074324,0.00025,2]
[423706036,1780319444000,-270.52267832,0.00025,2]
[423706043,1780319444000,-713.53095286,0.00025,2]
[423706049,1780319444000,-4001.64,0.00025276,7]
[423706033,1780319444000,-1289.35216406,0.00025,2]
[423706056,1780319444000,-2175.25,0.00025786,2]
[423706069,1780319444000,-1357.0,0.00026846,2]
[423706047,1780319444000,-200.0,0.00025131,2]
[423706058,1780319444000,-16865.34,0.00025786,2]
[423706051,1780319444000,-1984.22864002,0.00025479,2]
[423706048,1780319444000,-2991.49051684,0.00025271,2]
[423706052,1780319444000,-245.7,0.00025502,2]
[423706050,1780319444000,-1243.0,0.00025376,5]
[423706053,1780319444000,-1651.81367706,0.00025609,2]
[423706054,1780319444000,-150.74,0.00025644,2]
[423706059,1780319444000,-500.0,0.00026,2]
[423706067,1780319444000,-770.02,0.000268,7]
[423706061,1780319444000,-215.77,0.00026027,7]
[423706070,1780319444000,-929.0,0.00026846,2]
[423706060,1780319444000,-550.0,0.00026,2]
[423706034,1780319444000,-1413.1352666,0.00025,2]
[423706055,1780319444000,-395.0,0.00025786,2]
[423706035,1780319444000,-343.63813091,0.00025,2]
[423706003,1780319444000,-1280.0,0.00024,2]
[423706032,1780319444000,-217.0,0.00025,2]
[423706002,1780319444000,-217.0,0.00024,2]
[423706064,1780319444000,-1121.9,0.00026296,2]
[423706004,1780319444000,-1404.0,0.00024,2]
[423706006,1780319444000,-253.0,0.00024,2]
[423706016,1780319444000,-719.0,0.00024,2]
[423706007,1780319444000,-1792.0,0.00024,2]
[423706005,1780319444000,-337.0,0.00024,2]
[423706008,1780319444000,-427.0,0.00024,2]
[423706009,1780319444000,-321.0,0.00024,2]
[423706010,1780319444000,-1622.0,0.00024,2]
[423706015,1780319444000,-515.0,0.00024,2]
[423706011,1780319444000,-656.0,0.00024,2]
[423706012,1780319444000,-1197.0,0.00024,2]
[423706014,1780319444000,-500.0,0.00024,2]
[423706042,1780319444000,-1211.78091631,0.00025,2]
[423706013,1780319444000,-706.0,0.00024,2]
[423706021,1780319444000,-2781.82699784,0.00024175,2]
[423706022,1780319444000,-1121.9,0.00024324,2]
[423706023,1780319444000,-1536.04360648,0.00024513,2]
[423706030,1780319444000,-581.08794759,0.00024794,22]
[423706019,1780319444000,-16865.34,0.00024174,2]
[423706020,1780319444000,-1606.93,0.00024174,2]
[423706018,1780319444000,-302.08,0.0002411,2]
[423706025,1780319444000,-770.02,0.000246,7]
[423706029,1780319444000,-581.08794759,0.00024794,22]
[423706028,1780319444000,-2884.75459676,0.00024723,2]
[423706024,1780319444000,-763.72277884,0.00024578,2]
[423706026,1780319444000,-1000.0,0.00024658,2]
[423706027,1780319444000,-434.91,0.00024658,2]
[423706031,1780319444000,-340.83072653,0.00024844,2]
[423706017,1780319444000,-959.0,0.00024037,10]
[423706062,1780319444000,-1712.93078311,0.00026157,2]
[423706063,1780319444000,-200.0,0.00026289,2]
[423706071,1780319444000,-525.0,0.00026846,2]
[423706100,1780319444000,-9796.01,0.00028127,2]
[423706108,1780319444000,-196.11606136,0.00028406,2]
[423706101,1780319444000,-8848.75,0.00028127,2]
[423706105,1780319444000,-1121.9,0.00028267,2]
[423706102,1780319444000,-297.63,0.00028127,2]
[423706106,1780319444000,-1177.87523009,0.000283,14]
[423706104,1780319444000,-649.0,0.00028205,3]
[423706112,1780319444000,-166.96735884,0.00028406,2]
[423706122,1780319444000,-187.95572422,0.00028406,2]
[423706123,1780319444000,-186.62494193,0.00028406,2]
[423706124,1780319444000,-1015.10637797,0.00028419,5]
[423706111,1780319444000,-168.07886709,0.00028406,2]
[423706118,1780319444000,-177.43783545,0.00028406,2]
[423706113,1780319444000,-205.47520682,0.00028406,2]
[423706110,1780319444000,-198.61170647,0.00028406,2]
[423706120,1780319444000,-157.84581509,0.00028406,2]
[423706116,1780319444000,-167.73410736,0.00028406,2]
[423706114,1780319444000,-193.06973811,0.00028406,2]
[423706121,1780319444000,-179.0559042,0.00028406,2]
[423706115,1780319444000,-201.7915565,0.00028406,2]
[423706117,1780319444000,-160.0342613,0.00028406,2]
[423706125,1780319444000,-1000.14542105,0.00028419,5]
[423706128,1780319444000,-1058.09325768,0.00028419,5]
[423706065,1780319444000,-340.83072653,0.00026465,2]
[423706127,1780319444000,-1110.73846157,0.00028419,5]
[423706130,1780319444000,-1027.08261598,0.00028419,5]
[423706129,1780319444000,-1016.46726467,0.00028419,5]
[423706132,1780319444000,-152.0,0.00028568,3]
[423706131,1780319444000,-1010.16909805,0.00028419,5]
[423706133,1780319444000,-400.15,0.000286,7]
[423706119,1780319444000,-182.51047827,0.00028406,2]
[423706103,1780319444000,-1447.8,0.000282,14]
[423706126,1780319444000,-1021.87401518,0.00028419,5]
[423706109,1780319444000,-161.8971737,0.00028406,2]
[423706107,1780319444000,-168.10180141,0.00028406,2]
[423706066,1780319444000,-1537.66541106,0.00026705,2]
[423706068,1780319444000,-3551.0,0.00026846,2]
[423706077,1780319444000,-200.0,0.00027076,2]
[423706076,1780319444000,-4001.64,0.00027035,7]
[423706074,1780319444000,-209.21103511,0.00027,7]
[423706075,1780319444000,-2588.176592,0.0002701,2]
[423706078,1780319444000,-649.0,0.00027137,2]
[423706080,1780319444000,-209.3860962,0.00027397,2]
[423706081,1780319444000,-1500.0,0.00027397,2]
[423706079,1780319444000,-180.65,0.00027397,30]
[423706073,1780319444000,-2000.0,0.00027,2]
[423706084,1780319444000,-7177.94,0.00027397,10]
[423706083,1780319444000,-434.91,0.00027397,2]
[423706082,1780319444000,-300.0,0.00027397,2]
[423706072,1780319444000,-1273.0,0.00026846,2]
[423706096,1780319444000,-1984.22864002,0.00027943,2]
[423706098,1780319444000,-209.21103511,0.00028,10]
[423706086,1780319444000,-1000.0,0.00027397,30]
[423706093,1780319444000,-1355.0,0.000277,3]
[423706092,1780319444000,-331.75692434,0.00027699,2]
[423706088,1780319444000,-400.15,0.000274,7]
[423706087,1780319444000,-434.48,0.000274,7]
[423706099,1780319444000,-340.83072653,0.00028087,2]
[423706094,1780319444000,-200.0,0.00027863,2]
[423706095,1780319444000,-2000.0,0.00027886,15]
[423706089,1780319444000,-1447.8,0.000274,14]
[423706090,1780319444000,-5432.31669404,0.0002765,2]
[423706097,1780319444000,-600.0,0.00028,2]
[423706091,1780319444000,-649.0,0.00027671,2]
[423706085,1780319444000,-13687.85,0.00027397,10]
[423706168,1780319445000,-314.54,0.00029019,7]
[423706173,1780319445000,-314.33,0.00029044,30]
[423706171,1780319445000,-314.54,0.00029043,2]
[423706169,1780319445000,-314.33,0.0002903,7]
[423706174,1780319445000,-314.54,0.00029055,7]
[423706165,1780319445000,-314.54,0.00029008,2]
[423706166,1780319445000,-172.06,0.00029011,7]
[423706172,1780319445000,-362.06,0.00029043,7]
[423706164,1780319445000,-314.33,0.00029003,30]
[423706167,1780319445000,-314.33,0.00029017,2]
[423706163,1780319445000,-209.21103511,0.00029,3]
[423706180,1780319445000,-314.33,0.00029071,7]
[423706178,1780319445000,-361.54,0.00029065,7]
[423706188,1780319445000,-500.0,0.00029123,2]
[423706181,1780319445000,-314.54,0.00029079,2]
[423706177,1780319445000,-314.33,0.00029057,2]
[423706183,1780319445000,-314.54,0.0002909,7]
[423706187,1780319445000,-314.54,0.00029114,2]
[423706182,1780319445000,-314.33,0.00029084,30]
[423706186,1780319445000,-314.33,0.00029111,7]
[423706185,1780319445000,-314.54,0.00029102,30]
[423706184,1780319445000,-314.33,0.00029098,2]
[423706161,1780319445000,-169.57875851,0.00029,2]
[423706170,1780319445000,-314.54,0.00029031,30]
[423706157,1780319445000,-314.33,0.00028977,2]
[423706143,1780319445000,-500.22264435,0.00028767,2]
[423706158,1780319445000,-314.33,0.0002899,7]
[423706191,1780319445000,-292.29,0.00029137,2]
[423706137,1780319445000,-477.52,0.000287,14]
[423706136,1780319445000,-200.0,0.00028649,2]
[423706138,1780319445000,-770.02,0.000287,7]
[423706135,1780319445000,-5531.0,0.000286,5]
[423706140,1780319445000,-698.26,0.00028766,30]
[423706150,1780319445000,-172.06,0.00028871,30]
[423706139,1780319445000,-649.0,0.00028739,3]
[423706142,1780319445000,-229.18,0.00028767,30]
[423706141,1780319445000,-2000.0,0.00028766,40]
[423706144,1780319445000,-1000.0,0.00028767,40]
[423706156,1780319445000,-189.13920441,0.00028971,2]
[423706145,1780319445000,-6006.8,0.00028767,2]
[423706149,1780319445000,-500.0,0.00028855,2]
[423706148,1780319445000,-292.29,0.00028852,30]
[423706146,1780319445000,-4001.64,0.00028793,7]
[423706151,1780319445000,-1447.8,0.000289,14]
[423706155,1780319445000,-361.54,0.00028932,30]
[423706154,1780319445000,-362.06,0.00028907,30]
[423706153,1780319445000,-337.0,0.000289,2]
[423706152,1780319445000,-200.0,0.000289,2]
[423706159,1780319445000,-292.29,0.00028994,7]
[423706162,1780319445000,-3439.0,0.00029,7]
[423706160,1780319445000,-2500.0,0.00029,2]
[423706147,1780319445000,-2000.0,0.00028806,7]
[423706189,1780319445000,-314.33,0.00029125,30]
[423706179,1780319445000,-314.54,0.00029067,30]
[423706197,1780319445000,-172.06,0.00029152,2]
[423706224,1780319445000,-57460.02336755,0.00029407,2]
[423706225,1780319445000,-292.29,0.00029423,7]
[423706221,1780319445000,-522.31,0.00029328,30]
[423706216,1780319445000,-314.33,0.00029232,7]
[423706223,1780319445000,-361.54,0.00029333,30]
[423706227,1780319445000,-200.0,0.00029436,2]
[423706229,1780319445000,-344.12,0.00029445,7]
[423706231,1780319445000,-361.54,0.00029467,7]
[423706230,1780319445000,-362.06,0.00029453,7]
[423706233,1780319445000,-1120.79263502,0.00029534,5]
[423706234,1780319445000,-1000.22725967,0.00029534,5]
[423706220,1780319445000,-362.06,0.00029316,30]
[423706237,1780319445000,-1095.71672235,0.00029534,5]
[423706235,1780319445000,-1077.30619693,0.00029534,5]
[423706236,1780319445000,-1042.13066419,0.00029534,5]
[423706238,1780319445000,-1136.92571345,0.00029534,5]
[423706242,1780319445000,-1068.93836183,0.00029534,5]
[423706244,1780319445000,-1148.19410424,0.00029534,5]
[423706243,1780319445000,-1005.8543188,0.00029534,5]
[423706245,1780319445000,-1148.41319541,0.00029534,5]
[423706241,1780319445000,-1072.2581101,0.00029534,5]
[423706239,1780319445000,-1102.67857697,0.00029534,5]
[423706240,1780319445000,-1046.3398677,0.00029534,5]
[423706195,1780319445000,-522.31,0.00029147,7]
[423706232,1780319445000,-150.0,0.00029534,2]
[423706226,1780319445000,-172.06,0.00029433,7]
[423706228,1780319445000,-522.31,0.00029438,7]
[423706218,1780319445000,-292.29,0.0002928,30]
[423706199,1780319445000,-314.54,0.00029161,7]
[423706190,1780319445000,-314.54,0.00029126,7]
[423706192,1780319445000,-314.54,0.00029138,30]
[423706194,1780319445000,-522.31,0.00029147,30]
[423706193,1780319445000,-314.33,0.00029138,2]
[423706222,1780319445000,-2000.0,0.00029329,20]
[423706198,1780319445000,-314.33,0.00029152,7]
[423706201,1780319445000,-314.54,0.00029173,30]
[423706200,1780319445000,-314.33,0.00029165,30]
[423706203,1780319445000,-362.06,0.0002918,2]
[423706213,1780319445000,-314.54,0.00029221,2]
[423706214,1780319445000,-171.89,0.00029224,30]
[423706202,1780319445000,-314.33,0.00029179,2]
[423706196,1780319445000,-314.54,0.0002915,2]
[423706204,1780319445000,-314.54,0.00029185,2]
[423706205,1780319445000,-314.33,0.00029192,7]
[423706219,1780319445000,-172.06,0.00029292,30]
[423706217,1780319445000,-649.0,0.00029273,4]
[423706206,1780319445000,-314.54,0.00029197,7]
[423706211,1780319445000,-522.31,0.00029219,2]
[423706215,1780319445000,-314.61,0.00029232,7]
[423706208,1780319445000,-434.48,0.000292,7]
[423706207,1780319445000,-361.54,0.00029199,2]
[423706212,1780319445000,-314.33,0.00029219,2]
[423706210,1780319445000,-314.54,0.00029209,30]
[423706209,1780319445000,-314.33,0.00029205,30]
[423706302,1780319446000,-706.0,0.00029666,30]
[423706298,1780319446000,-1447.8,0.000296,14]
[423706301,1780319446000,-1197.0,0.00029666,30]
[423706300,1780319446000,-656.0,0.00029666,30]
[423706295,1780319446000,-292.29,0.00029565,2]
[423706294,1780319446000,-522.31,0.00029547,2]
[423706297,1780319446000,-400.15,0.000296,7]
[423706246,1780319446000,-1009.29382685,0.00029534,5]
[423706296,1780319446000,-172.06,0.00029574,2]
[423706291,1780319446000,-387.75544607,0.00012898,2]
[423706292,1780319446000,-3110.52309977,0.00020261,2]
[423706289,1780319446000,-885.38867004,0.00029534,5]
[423706247,1780319446000,-98.16330105,0.00029534,5]
[423706303,1780319446000,-515.0,0.00029673,30]
[423706293,1780319446000,-555.30222034,0.00029534,5]
[423706313,1780319446000,-253.0,0.00029717,30]
[423706299,1780319446000,-522.31,0.00029656,30]
[423706308,1780319446000,-292.29,0.00029708,30]
[423706305,1780319446000,-1000.0,0.000297,7]
[423706320,1780319446000,-323.7943474,0.00029737,2]
[423706321,1780319446000,-397.22341294,0.00029737,2]
[423706315,1780319446000,-427.0,0.00029717,30]
[423706318,1780319446000,-336.20360281,0.00029737,2]
[423706316,1780319446000,-321.0,0.00029717,30]
[423706312,1780319446000,-337.0,0.00029717,30]
[423706317,1780319446000,-1622.0,0.00029717,30]
[423706314,1780319446000,-1792.0,0.00029717,30]
[423706309,1780319446000,-172.06,0.00029714,30]
[423706311,1780319446000,-1404.0,0.00029717,30]
[423706304,1780319446000,-719.0,0.00029673,30]
[423706319,1780319446000,-392.23212272,0.00029737,2]
[423706310,1780319446000,-1280.0,0.00029717,30]
[423706306,1780319446000,-1000.01,0.000297,30]
[423706307,1780319446000,-340.83072653,0.00029708,2]
[423706359,1780319447000,-1000.0,0.00030137,120]
[423706353,1780319447000,-990.12480532,0.0003003,2]
[423706364,1780319447000,-1000.0,0.00030137,3]
[423706366,1780319447000,-1000.0,0.00030137,3]
[423706362,1780319447000,-1000.0,0.00030137,120]
[423706363,1780319447000,-327.92668596,0.00030137,120]
[423706355,1780319447000,-1000.01,0.000301,30]
[423706357,1780319447000,-2000.0,0.00030136,25]
[423706354,1780319447000,-3439.0,0.000301,7]
[423706358,1780319447000,-434.91,0.00030137,2]
[423706356,1780319447000,-2000.0,0.00030136,50]
[423706365,1780319447000,-1000.0,0.00030137,3]
[423706376,1780319447000,-160.0,0.000302,2]
[423706368,1780319447000,-200.0,0.00030137,2]
[423706370,1780319447000,-180.65,0.00030137,30]
[423706369,1780319447000,-14373.20929562,0.00030137,25]
[423706367,1780319447000,-207.33407554,0.00030137,3]
[423706371,1780319447000,-156.15,0.00030137,2]
[423706361,1780319447000,-1000.0,0.00030137,50]
[423706374,1780319447000,-156.15,0.00030137,2]
[423706377,1780319447000,-1000.01,0.000302,30]
[423706375,1780319447000,-574.93,0.00030137,7]
[423706372,1780319447000,-156.15,0.00030137,2]
[423706373,1780319447000,-156.15,0.00030137,2]
[423706379,1780319447000,-334.305,0.000302,3]
[423706380,1780319447000,-200.0,0.00030223,2]
[423706360,1780319447000,-2500.0,0.00030137,120]
[423706349,1780319447000,-167.0,0.0003,14]
[423706343,1780319447000,-522.31,0.00029875,2]
[423706345,1780319447000,-522.39,0.00029985,30]
[423706381,1780319447000,-1121.9,0.00030239,2]